[Event "Hungarian Rapid-ch 2022"]
[Site "Ajka"]
[Date "2022.07.17"]
[Round "12.25"]
[White "Boguszlavszkij, Jevgenyij"]
[Black "Margl, Roland"]
[Result "1/2-1/2"]
[ECO "D00"]
[WhiteElo "1914"]
[BlackElo "2312"]
[Annotator "ChessBase"]
[PlyCount "114"]
[EventDate "2022.07.15"]
[EventType "swiss"]
[EventCountry "HUN"]
[SourceTitle "playchess.com"]
[Source "ChessBase"]
[SourceQuality "1"]
[TimeControl "900+10"]

1. d4 {[%emt 0:00:15]} d5 {[%emt 0:00:11]} 2. Bf4 {[%emt 0:00:02]} Nf6 {[%emt 0:00:08]} 3. e3 {[%emt 0:00:01]} e6 {[%emt 0:00:01]} 4. Nf3 {[%emt 0:00:07]} Bd6 {[%emt 0:00:01]} 5. Ne5 {[%emt 0:00:01]} O-O {[%emt 0:00:10]} 6. Nd2 {[%emt 0:00:05]} c5 {[%emt 0:00:01]} 7. c3 {[%emt 0:00:03]} Qc7 {[%emt 0:00:14]} 8. Bg3 {[%emt 0:00:31]} Nc6 {[%emt 0:00:06]} 9. Ndf3 {[%emt 0:00:24]} Ne4 {[%emt 0:01:35]} 10. Bd3 {[%emt 0:00:18]} h6 {[%emt 0:00:17]} 11. Nxc6 {[%emt 0:01:41]} Nxg3 {[%emt 0:00:28]} 12. Ne7+ {[%emt 0:00:24]} Qxe7 {[%emt 0:01:37]} 13. hxg3 {[%emt 0:00:03]} e5 {[%emt 0:00:15]} 14. dxe5 {[%emt 0:00:10]} Bxe5 {[%emt 0:00:05]} 15. Nxe5 {[%emt 0:00:13]} Qxe5 {[%emt 0:00:01]} 16. Qh5 {[%emt 0:01:28]} Qxh5 {[%emt 0:03:48]} 17. Rxh5 {[%emt 0:00:02]} Rd8 {[%emt 0:00:02]} 18. Be2 {[%emt 0:00:24]} Be6 {[%emt 0:00:13]} 19. O-O-O {[%emt 0:00:07]} Rd7 {[%emt 0:00:19]} 20. g4 {[%emt 0:00:15]} f6 {[%emt 0:00:15]} 21. c4 Bf7 {[%emt 0:02:23]} 22. Rh4 {[%emt 0:01:54]} Rad8 {[%emt 0:00:15]} 23. cxd5 {[%emt 0:00:34]} Rxd5 {[%emt 0:00:35]} 24. Rxd5 {[%emt 0:00:20]} Bxd5 {[%emt 0:00:41]} 25. Rh5 {[%emt 0:00:29]} Kf8 {[%emt 0:00:56]} 26. Bf3 {[%emt 0:00:28]} Bxf3 {[%emt 0:01:45]} 27. gxf3 {[%emt 0:00:02]} b6 {[%emt 0:00:01]} 28. Kc2 {[%emt 0:00:08]} Ke7 {[%emt 0:00:06]} 29. Rh1 {[%emt 0:00:02]} Ke6 {[%emt 0:00:07]} 30. Kc3 {[%emt 0:00:02]} b5 {[%emt 0:00:45]} 31. f4 {[%emt 0:00:04]} Rd5 {[%emt 0:00:16]} 32. Re1 {[%emt 0:00:37]} a5 {[%emt 0:01:16]} 33. b3 {[%emt 0:00:12]} c4 {[%emt 0:00:14]} 34. bxc4 {[%emt 0:00:10]} Rc5 {[%emt 0:00:01]} 35. Rb1 {[%emt 0:00:11]} Rxc4+ {[%emt 0:00:02]} 36. Kd3 {[%emt 0:00:02]} Rc5 {[%emt 0:00:08]} 37. Rb2 {[%emt 0:00:06]} b4 {[%emt 0:00:05]} 38. Kd4 {[%emt 0:00:16]} Rc3 {[%emt 0:00:13]} 39. Rd2 {[%emt 0:00:39]} g5 {[%emt 0:00:21]} 40. f5+ {[%emt 0:00:35]} Kd6 {[%emt 0:00:01]} 41. f3 {[%emt 0:00:32]} Ra3 {[%emt 0:00:56]} 42. Rh2 {[%emt 0:00:03]} Ke7 {[%emt 0:00:05]} 43. Re2 {[%emt 0:00:33]} a4 {[%emt 0:00:15]} 44. Rb2 {[%emt 0:00:17]} Kd6 {[%emt 0:00:44]} 45. Rxb4 {[%emt 0:00:20]} Rxa2 {[%emt 0:00:01]} 46. Rb6+ {[%emt 0:00:01]} Ke7 {[%emt 0:00:03]} 47. Kc4 {[%emt 0:00:16]} Rf2 {[%emt 0:00:07]} 48. Kd5 {[%emt 0:00:19]} Rd2+ {[%emt 0:00:19]} 49. Kc5 {[%emt 0:00:18]} a3 {[%emt 0:00:08]} 50. Rb7+ {[%emt 0:00:02]} Kf8 {[%emt 0:00:08]} 51. Ra7 {[%emt 0:00:02]} a2 {[%emt 0:00:02]} 52. e4 {[%emt 0:00:19]} Ke8 {[%emt 0:00:28]} 53. Kc4 {[%emt 0:00:30]} Kf8 {[%emt 0:00:15]} 54. Kc3 {[%emt 0:01:19]} Rf2 {[%emt 0:00:15]} 55. Kd4 {[%emt 0:00:06]} Rd2+ {[%emt 0:00:07]} 56. Ke3 {[%emt 0:00:06]} Rb2 {[%emt 0:00:05]} 57. Kd3 {[%emt 0:00:25]} Ke8 {[%emt 0:00:06]} 1/2-1/2

[Event "Hungarian Rapid-ch 2022"]
[Site "Ajka"]
[Date "2022.07.17"]
[Round "12.26"]
[White "Mozes, Ervin"]
[Black "Balint, Vilmos"]
[Result "1-0"]
[ECO "C08"]
[WhiteElo "2039"]
[BlackElo "2283"]
[Annotator "ChessBase"]
[PlyCount "83"]
[EventDate "2022.07.15"]
[EventType "swiss"]
[EventCountry "HUN"]
[SourceTitle "playchess.com"]
[Source "ChessBase"]
[SourceQuality "1"]
[TimeControl "900+10"]

1. e4 {[%emt 0:00:20]} e6 {[%emt 0:00:22]} 2. d4 {[%emt 0:00:03]} d5 {[%emt 0:00:01]} 3. Nd2 {[%emt 0:00:01]} c5 {[%emt 0:00:02]} 4. exd5 {[%emt 0:00:02]} exd5 {[%emt 0:00:01]} 5. Bb5+ {[%emt 0:00:01]} Bd7 {[%emt 0:00:02]} 6. Qe2+ {[%emt 0:00:07]} Be7 {[%emt 0:00:14]} 7. dxc5 {[%emt 0:00:47]} Qa5 {[%emt 0:00:03]} 8. Bxd7+ {[%emt 0:00:56]} Nxd7 {[%emt 0:00:02]} 9. Ngf3 {[%emt 0:00:04]} Nxc5 {[%emt 0:00:36]} 10. O-O {[%emt 0:00:09]} Ne6 {[%emt 0:00:01]} 11. Nb3 {[%emt 0:00:08]} Qc7 {[%emt 0:00:09]} 12. Qb5+ {[%emt 0:01:06]} Qc6 {[%emt 0:00:09]} 13. Nbd4 {[%emt 0:00:02]} Qxb5 {[%emt 0:00:04]} 14. Nxb5 {[%emt 0:00:02]} Nf6 {[%emt 0:00:13]} 15. Nfd4 {[%emt 0:00:51]} Kd7 {[%emt 0:02:24]} 16. Be3 {[%emt 0:01:28]} a6 {[%emt 0:00:30]} 17. Nc3 {[%emt 0:00:02]} Rhd8 {[%emt 0:00:41]} 18. Rad1 {[%emt 0:00:07]} Ke8 {[%emt 0:00:04]} 19. Rfe1 {[%emt 0:00:33]} Kf8 {[%emt 0:00:18]} 20. a3 {[%emt 0:01:45]} Rac8 {[%emt 0:00:11]} 21. Rd3 {[%emt 0:01:01]} Nc5 {[%emt 0:00:53]} 22. Rdd1 {[%emt 0:00:54]} Ne6 {[%emt 0:00:11]} 23. Rd3 {[%emt 0:00:00]} Rc4 {[%emt 0:00:19]} 24. Nce2 {[%emt 0:00:41]} Rdc8 {[%emt 0:01:29]} 25. c3 {[%emt 0:01:06]} Ng4 {[%emt 0:00:09]} 26. Nf5 {[%emt 0:02:38]} Nf6 {[%emt 0:02:56]} 27. Nxe7 {[%emt 0:00:33]} Kxe7 {[%emt 0:00:01]} 28. Bd4 {[%emt 0:00:01]} R4c6 {[%emt 0:00:55]} 29. Bxf6+ {[%emt 0:00:09]} Kxf6 {[%emt 0:00:02]} 30. Rxd5 {[%emt 0:00:06]} Rb6 {[%emt 0:00:02]} 31. Rd2 {[%emt 0:00:12]} Nc5 {[%emt 0:00:01]} 32. Nf4 {[%emt 0:00:23]} Rb3 {[%emt 0:00:19]} 33. Nd5+ {[%emt 0:01:05]} Kg5 {[%emt 0:00:00]} 34. Re5+ {[%emt 0:01:29]} Kh6 {[%emt 0:00:03]} 35. Ne7 {[%emt 0:00:36]} Rc7 {[%emt 0:00:17]} 36. Rdd5 {[%emt 0:00:21]} Rxe7 {[%emt 0:00:58]} 37. Rxe7 {[%emt 0:00:03]} Rxb2 {[%emt 0:00:07]} 38. g3 {[%emt 0:00:01]} b6 {[%emt 0:00:37]} 39. Rxf7 {[%emt 0:00:07]} g6 {[%emt 0:00:02]} 40. h4 {[%emt 0:00:09]} Ne4 {[%emt 0:00:06]} 41. Rdd7 {[%emt 0:00:15]} Kh5 {[%emt 0:00:01]} 42. Rf4 {[%emt 0:00:28]} 1-0

[Event "Hungarian Rapid-ch 2022"]
[Site "Ajka"]
[Date "2022.07.17"]
[Round "12.27"]
[White "Kozma, Karoly"]
[Black "Gyenes, Mate"]
[Result "0-1"]
[ECO "A04"]
[WhiteElo "2213"]
[BlackElo "2048"]
[Annotator "ChessBase"]
[PlyCount "52"]
[EventDate "2022.07.15"]
[EventType "swiss"]
[EventCountry "HUN"]
[SourceTitle "playchess.com"]
[Source "ChessBase"]
[SourceQuality "1"]
[TimeControl "900+10"]

1. Nf3 {[%emt 0:00:13]} c5 {[%emt 0:00:12]} 2. b3 {[%emt 0:00:05]} Nc6 {[%emt 0:00:07]} 3. Bb2 {[%emt 0:00:02]} d5 {[%emt 0:00:05]} 4. e3 {[%emt 0:00:02]} Nf6 {[%emt 0:00:04]} 5. Bb5 {[%emt 0:00:03]} e6 {[%emt 0:00:07]} 6. O-O {[%emt 0:00:19]} Bd6 {[%emt 0:00:04]} 7. Ne5 {[%emt 0:00:25]} Qc7 {[%emt 0:00:22]} 8. Bxc6+ {[%emt 0:00:07]} bxc6 {[%emt 0:00:04]} 9. f4 {[%emt 0:00:01]} Ba6 {[%emt 0:00:15]} 10. d3 {[%emt 0:00:03]} Qb6 {[%emt 0:01:24]} 11. Rf3 {[%emt 0:02:53]} d4 {[%emt 0:02:00]} 12. Nd2 {[%emt 0:01:27]} Bxe5 {[%emt 0:03:32]} 13. fxe5 {[%emt 0:00:03]} Ng4 {[%emt 0:02:00]} 14. exd4 {[%emt 0:03:53]} cxd4 {[%emt 0:00:09]} 15. Rxf7 {[%emt 0:00:11]} Kxf7 {[%emt 0:00:40]} 16. Qxg4 {[%emt 0:00:03]} Rhf8 {[%emt 0:00:53]} 17. Ne4 {[%emt 0:02:39]} Kg8 {[%emt 0:01:21]} 18. Nf6+ {[%emt 0:01:18]} Kh8 {[%emt 0:00:05]} 19. Nd7 {[%emt 0:00:02]} Qb4 {[%emt 0:00:50]} 20. Nxf8 {[%emt 0:01:13]} Rxf8 {[%emt 0:00:02]} 21. Qxd4 {[%emt 0:01:16]} Qd2 {[%emt 0:00:13]} 22. Ba3 {[%emt 0:00:02]} c5 {[%emt 0:01:19]} 23. Bxc5 {[%emt 0:00:48]} Bb7 {[%emt 0:00:35]} 24. Qg4 {[%emt 0:00:31]} Rf5 {[%emt 0:00:04]} 25. Rd1 {[%emt 0:00:54]} Qxc2 {[%emt 0:00:11]} 26. Be3 {[%emt 0:00:30]} h5 {[%emt 0:00:24]} 0-1

[Event "Hungarian Rapid-ch 2022"]
[Site "Ajka"]
[Date "2022.07.17"]
[Round "12.28"]
[White "Pogany, Zsombor"]
[Black "Straubinger, Daniel"]
[Result "0-1"]
[ECO "C99"]
[WhiteElo "2178"]
[BlackElo "2349"]
[Annotator "ChessBase"]
[PlyCount "108"]
[EventDate "2022.07.15"]
[EventType "swiss"]
[EventCountry "HUN"]
[SourceTitle "playchess.com"]
[Source "ChessBase"]
[SourceQuality "1"]
[TimeControl "900+10"]

1. e4 {[%emt 0:00:13]} e5 {[%emt 0:00:11]} 2. Nf3 {[%emt 0:00:03]} Nc6 {[%emt 0:00:01]} 3. Bb5 {[%emt 0:00:04]} a6 {[%emt 0:00:02]} 4. Ba4 {[%emt 0:00:02]} Nf6 {[%emt 0:00:22]} 5. O-O {[%emt 0:00:05]} Be7 {[%emt 0:00:02]} 6. Re1 {[%emt 0:00:20]} b5 {[%emt 0:00:03]} 7. Bb3 {[%emt 0:00:03]} d6 {[%emt 0:00:02]} 8. c3 {[%emt 0:00:36]} O-O {[%emt 0:00:04]} 9. h3 {[%emt 0:00:03]} Na5 {[%emt 0:00:03]} 10. Bc2 {[%emt 0:00:07]} c5 {[%emt 0:00:02]} 11. d4 {[%emt 0:00:35]} Qc7 {[%emt 0:00:08]} 12. Nbd2 {[%emt 0:01:37]} cxd4 {[%emt 0:00:07]} 13. cxd4 {[%emt 0:00:04]} Nc6 {[%emt 0:00:03]} 14. d5 {[%emt 0:00:41]} Nb4 {[%emt 0:00:06]} 15. Bb1 {[%emt 0:00:11]} a5 {[%emt 0:00:03]} 16. a3 {[%emt 0:01:01]} Na6 {[%emt 0:00:02]} 17. Nf1 {[%emt 0:00:38]} Bd7 {[%emt 0:01:08]} 18. Be3 {[%emt 0:01:30]} Rfc8 {[%emt 0:00:15]} 19. N1d2 {[%emt 0:00:59]} a4 {[%emt 0:00:26]} 20. Bd3 {[%emt 0:01:52]} Nc5 {[%emt 0:00:05]} 21. Bxc5 {[%emt 0:00:34]} Qxc5 {[%emt 0:00:03]} 22. Rc1 {[%emt 0:00:13]} Qb6 {[%emt 0:00:09]} 23. Bf1 {[%emt 0:01:02]} Bd8 {[%emt 0:00:14]} 24. g3 {[%emt 0:00:25]} Qa7 {[%emt 0:00:29]} 25. Qe2 {[%emt 0:00:43]} Ba5 {[%emt 0:00:16]} 26. Red1 {[%emt 0:01:21]} Rc7 {[%emt 0:00:18]} 27. Rxc7 {[%emt 0:00:44]} Qxc7 {[%emt 0:00:01]} 28. Nb1 {[%emt 0:00:40]} Rc8 {[%emt 0:00:08]} 29. Nc3 {[%emt 0:00:14]} Bxc3 {[%emt 0:00:12]} 30. Rc1 {[%emt 0:00:38]} Qb6 {[%emt 0:01:37]} 31. Rxc3 {[%emt 0:00:11]} Rxc3 {[%emt 0:00:05]} 32. bxc3 {[%emt 0:00:01]} Qc5 {[%emt 0:00:02]} 33. g4 {[%emt 0:01:40]} Qxc3 {[%emt 0:00:26]} 34. g5 {[%emt 0:00:07]} Nh5 {[%emt 0:00:41]} 35. Nh4 {[%emt 0:00:57]} Nf4 {[%emt 0:00:08]} 36. Qf3 {[%emt 0:00:13]} Qxf3 {[%emt 0:01:03]} 37. Nxf3 {[%emt 0:00:02]} Nxh3+ {[%emt 0:00:03]} 38. Kg2 {[%emt 0:00:12]} Nf4+ {[%emt 0:00:18]} 39. Kg3 {[%emt 0:00:08]} f5 {[%emt 0:01:13]} 40. gxf6 {[%emt 0:00:10]} Nh5+ {[%emt 0:00:06]} 41. Kh4 {[%emt 0:00:17]} Nxf6 {[%emt 0:00:04]} 42. Nd2 {[%emt 0:00:04]} h6 {[%emt 0:00:07]} 43. f3 {[%emt 0:00:07]} Kf8 {[%emt 0:00:24]} 44. Nb1 {[%emt 0:00:27]} g5+ {[%emt 0:00:01]} 45. Kg3 {[%emt 0:00:01]} Ne8 {[%emt 0:00:04]} 46. Nc3 {[%emt 0:00:14]} Nc7 {[%emt 0:00:02]} 47. Bh3 {[%emt 0:00:26]} Bxh3 {[%emt 0:00:04]} 48. Kxh3 {[%emt 0:00:01]} h5 {[%emt 0:00:02]} 49. Ne2 {[%emt 0:00:11]} Ke7 {[%emt 0:00:54]} 50. Kg2 {[%emt 0:00:12]} Kd7 {[%emt 0:00:47]} 51. Ng3 {[%emt 0:00:03]} h4 {[%emt 0:00:03]} 52. Ne2 {[%emt 0:00:02]} b4 {[%emt 0:01:32]} 53. axb4 {[%emt 0:00:02]} Nb5 {[%emt 0:00:02]} 54. Nc1 {[%emt 0:00:26]} Nc3 {[%emt 0:00:07]} 0-1

[Event "Hungarian Rapid-ch 2022"]
[Site "Ajka"]
[Date "2022.07.17"]
[Round "12.29"]
[White "Bodi, Tibor"]
[Black "Kolimar, Kristof Pal"]
[Result "1-0"]
[ECO "A00"]
[WhiteElo "2301"]
[BlackElo "2160"]
[Annotator "ChessBase"]
[PlyCount "69"]
[EventDate "2022.07.15"]
[EventType "swiss"]
[EventCountry "HUN"]
[SourceTitle "playchess.com"]
[Source "ChessBase"]
[SourceQuality "1"]
[TimeControl "900+10"]

1. Nc3 {[%emt 0:00:13]} d5 {[%emt 0:00:11]} 2. e4 {[%emt 0:00:01]} d4 {[%emt 0:00:05]} 3. Nce2 {[%emt 0:00:02]} e5 {[%emt 0:00:01]} 4. Ng3 {[%emt 0:00:01]} Be6 {[%emt 0:00:25]} 5. Nf3 {[%emt 0:00:12]} Bd6 {[%emt 0:00:09]} 6. Bb5+ {[%emt 0:01:29]} c6 {[%emt 0:00:03]} 7. Ba4 {[%emt 0:00:01]} Nd7 {[%emt 0:00:38]} 8. Bb3 {[%emt 0:00:27]} Bxb3 {[%emt 0:00:07]} 9. axb3 {[%emt 0:00:09]} g6 {[%emt 0:00:03]} 10. d3 {[%emt 0:00:06]} f6 {[%emt 0:00:28]} 11. O-O {[%emt 0:00:19]} h5 {[%emt 0:00:38]} 12. Nh4 {[%emt 0:00:22]} Ne7 {[%emt 0:01:05]} 13. Bd2 {[%emt 0:01:11]} Kf7 {[%emt 0:04:39]} 14. c3 {[%emt 0:00:24]} c5 {[%emt 0:00:27]} 15. b4 {[%emt 0:00:01]} b6 {[%emt 0:01:42]} 16. Qb3+ {[%emt 0:00:47]} Kg7 {[%emt 0:00:01]} 17. bxc5 {[%emt 0:01:59]} Bxc5 {[%emt 0:01:29]} 18. Kh1 {[%emt 0:00:27]} a5 {[%emt 0:01:06]} 19. f4 {[%emt 0:00:19]} Rc8 {[%emt 0:01:28]} 20. fxe5 {[%emt 0:01:49]} Nxe5 {[%emt 0:00:03]} 21. Nf3 {[%emt 0:00:19]} N7c6 {[%emt 0:00:21]} 22. Ne2 {[%emt 0:00:36]} dxc3 {[%emt 0:01:31]} 23. Bxc3 {[%emt 0:00:08]} Qxd3 {[%emt 0:00:24]} 24. Nxe5 {[%emt 0:00:47]} Nxe5 {[%emt 0:00:24]} 25. Rxf6 {[%emt 0:01:45]} Rhe8 {[%emt 0:00:51]} 26. Rxg6+ {[%emt 0:00:38]} Kh7 {[%emt 0:00:10]} 27. Nf4 {[%emt 0:02:49]} Qe3 {[%emt 0:00:24]} 28. Qd1 {[%emt 0:00:43]} Ng4 {[%emt 0:00:29]} 29. Rxg4 {[%emt 0:00:49]} hxg4 {[%emt 0:00:18]} 30. Qd7+ {[%emt 0:00:14]} Re7 {[%emt 0:00:15]} 31. Qf5+ {[%emt 0:00:02]} Kg8 {[%emt 0:00:01]} 32. Qxc8+ {[%emt 0:00:07]} Kf7 {[%emt 0:00:05]} 33. Qxg4 {[%emt 0:00:21]} Qxe4 {[%emt 0:00:06]} 34. Qh5+ {[%emt 0:00:14]} Kg8 {[%emt 0:00:07]} 35. Nd5 {[%emt 0:00:25]} 1-0

[Event "Hungarian Rapid-ch 2022"]
[Site "Ajka"]
[Date "2022.07.17"]
[Round "12.30"]
[White "Dobos, Jozsef"]
[Black "Molnar, Aurel Jr."]
[Result "0-1"]
[ECO "A00"]
[WhiteElo "2244"]
[BlackElo "2014"]
[Annotator "ChessBase"]
[PlyCount "52"]
[EventDate "2022.07.15"]
[EventType "swiss"]
[EventCountry "HUN"]
[SourceTitle "playchess.com"]
[Source "ChessBase"]
[SourceQuality "1"]
[TimeControl "900+10"]

1. a3 {[%emt 0:00:15]} d5 {[%emt 0:00:21]} 2. g3 {[%emt 0:00:29]} g6 {[%emt 0:00:07]} 3. Bg2 {[%emt 0:00:02]} Bg7 {[%emt 0:00:01]} 4. f4 {[%emt 0:00:41]} Nf6 {[%emt 0:00:24]} 5. Nf3 {[%emt 0:00:02]} O-O {[%emt 0:00:07]} 6. O-O {[%emt 0:00:10]} c5 {[%emt 0:00:03]} 7. d3 {[%emt 0:00:07]} Nc6 {[%emt 0:00:11]} 8. Nc3 {[%emt 0:00:06]} d4 {[%emt 0:00:51]} 9. Ne4 {[%emt 0:01:28]} Nxe4 {[%emt 0:00:10]} 10. dxe4 {[%emt 0:00:01]} e5 {[%emt 0:01:05]} 11. f5 {[%emt 0:00:15]} gxf5 {[%emt 0:02:46]} 12. Nh4 {[%emt 0:00:01]} f4 {[%emt 0:00:50]} 13. Nf5 {[%emt 0:00:03]} Bxf5 {[%emt 0:01:27]} 14. exf5 {[%emt 0:00:02]} Re8 {[%emt 0:00:59]} 15. Be4 {[%emt 0:01:19]} Kh8 {[%emt 0:01:15]} 16. Qd3 {[%emt 0:00:11]} Qf6 {[%emt 0:00:34]} 17. Rf3 {[%emt 0:06:20]} Bh6 {[%emt 0:00:33]} 18. Bd2 {[%emt 0:00:13]} Rg8 {[%emt 0:00:28]} 19. Kh1 {[%emt 0:00:24]} fxg3 {[%emt 0:00:43]} 20. hxg3 {[%emt 0:00:08]} Bxd2 {[%emt 0:00:39]} 21. Qxd2 {[%emt 0:00:02]} Rg4 {[%emt 0:00:35]} 22. Bxc6 {[%emt 0:01:44]} Qxc6 {[%emt 0:00:18]} 23. Kh2 {[%emt 0:00:13]} e4 {[%emt 0:00:24]} 24. Rb3 {[%emt 0:01:29]} e3 {[%emt 0:00:18]} 25. Qe1 {[%emt 0:00:44]} Rag8 {[%emt 0:00:26]} 26. f6 {[%emt 0:01:23]} Rh4+ {[%emt 0:00:04]} 0-1

[Event "Hungarian Rapid-ch 2022"]
[Site "Ajka"]
[Date "2022.07.17"]
[Round "13.2"]
[White "Hoang, Thanh Trang"]
[Black "Balog, Imre"]
[Result "0-1"]
[ECO "A48"]
[WhiteElo "2376"]
[BlackElo "2594"]
[Annotator "ChessBase"]
[PlyCount "128"]
[EventDate "2022.07.15"]
[EventType "swiss"]
[EventCountry "HUN"]
[SourceTitle "playchess.com"]
[Source "ChessBase"]
[SourceQuality "1"]
[TimeControl "900+10"]

1. d4 {[%emt 0:00:13]} Nf6 {[%emt 0:00:16]} 2. Nf3 {[%emt 0:00:06]} g6 {[%emt 0:00:04]} 3. Bf4 {[%emt 0:00:10]} Bg7 {[%emt 0:00:03]} 4. e3 {[%emt 0:00:06]} c5 {[%emt 0:00:13]} 5. c3 {[%emt 0:00:32]} b6 {[%emt 0:00:22]} 6. Nbd2 {[%emt 0:00:23]} Bb7 {[%emt 0:00:05]} 7. Be2 {[%emt 0:00:14]} d6 {[%emt 0:00:06]} 8. h3 {[%emt 0:00:13]} Nbd7 {[%emt 0:00:17]} 9. O-O {[%emt 0:00:14]} O-O {[%emt 0:00:03]} 10. a4 {[%emt 0:00:11]} a6 {[%emt 0:00:33]} 11. Bh2 {[%emt 0:00:07]} Qc7 {[%emt 0:00:06]} 12. Qb3 {[%emt 0:00:42]} Rab8 {[%emt 0:00:10]} 13. Rfd1 {[%emt 0:02:23]} b5 {[%emt 0:02:22]} 14. axb5 {[%emt 0:00:10]} axb5 {[%emt 0:00:02]} 15. dxc5 {[%emt 0:02:04]} Nxc5 {[%emt 0:00:11]} 16. Qb4 {[%emt 0:00:20]} Nd5 {[%emt 0:01:05]} 17. Qh4 {[%emt 0:00:07]} Na4 {[%emt 0:00:23]} 18. c4 {[%emt 0:02:12]} Nxb2 {[%emt 0:00:58]} 19. cxd5 {[%emt 0:00:13]} Nxd1 {[%emt 0:00:02]} 20. Rxd1 {[%emt 0:00:02]} Bxd5 {[%emt 0:00:02]} 21. e4 {[%emt 0:00:41]} Ba8 {[%emt 0:00:07]} 22. Bf4 {[%emt 0:00:16]} Rfe8 {[%emt 0:02:20]} 23. Rb1 {[%emt 0:00:54]} b4 {[%emt 0:02:34]} 24. Bc4 {[%emt 0:00:12]} e6 {[%emt 0:00:02]} 25. Bb3 {[%emt 0:00:27]} Rb6 {[%emt 0:00:32]} 26. Rd1 {[%emt 0:00:53]} Qc3 {[%emt 0:00:31]} 27. Bh6 {[%emt 0:00:51]} Ra6 {[%emt 0:00:16]} 28. Bxg7 {[%emt 0:01:19]} Kxg7 {[%emt 0:00:05]} 29. e5 {[%emt 0:01:58]} Bxf3 {[%emt 0:00:23]} 30. gxf3 {[%emt 0:01:00]} Qxe5 {[%emt 0:00:55]} 31. Qxb4 {[%emt 0:00:06]} d5 {[%emt 0:00:02]} 32. f4 {[%emt 0:00:17]} Rb8 {[%emt 0:00:15]} 33. fxe5 {[%emt 0:00:14]} Rxb4 {[%emt 0:00:01]} 34. Kg2 {[%emt 0:00:21]} Ra3 {[%emt 0:01:13]} 35. Rb1 {[%emt 0:00:01]} g5 {[%emt 0:00:14]} 36. Bd1 {[%emt 0:00:30]} Rxb1 {[%emt 0:00:23]} 37. Nxb1 {[%emt 0:00:01]} Ra1 {[%emt 0:00:17]} 38. Bc2 {[%emt 0:00:01]} Ra2 {[%emt 0:00:01]} 39. Bd3 {[%emt 0:00:05]} Rb2 {[%emt 0:00:15]} 40. Kf3 {[%emt 0:00:08]} h5 {[%emt 0:00:02]} 41. Ke3 {[%emt 0:00:05]} f6 {[%emt 0:00:39]} 42. exf6+ {[%emt 0:00:04]} Kxf6 {[%emt 0:00:01]} 43. Nc3 {[%emt 0:00:07]} Rb3 {[%emt 0:00:42]} 44. Kd2 {[%emt 0:00:05]} Ke5 {[%emt 0:00:09]} 45. Ne2 {[%emt 0:00:07]} Rb4 {[%emt 0:00:13]} 46. Ke3 {[%emt 0:00:10]} Ra4 {[%emt 0:00:28]} 47. Bg6 {[%emt 0:00:15]} Ra3+ {[%emt 0:00:06]} 48. Bd3 {[%emt 0:00:02]} Kf6 {[%emt 0:00:07]} 49. Ng3 {[%emt 0:00:44]} h4 {[%emt 0:00:04]} 50. Nh5+ {[%emt 0:00:12]} Ke5 {[%emt 0:00:21]} 51. f4+ {[%emt 0:00:02]} gxf4+ {[%emt 0:00:02]} 52. Nxf4 {[%emt 0:00:02]} Kf6 {[%emt 0:00:16]} 53. Ke2 {[%emt 0:00:06]} Ra5 {[%emt 0:00:09]} 54. Ng2 {[%emt 0:00:13]} Kg5 {[%emt 0:00:06]} 55. Ne1 {[%emt 0:00:09]} Kf4 {[%emt 0:00:02]} 56. Bg6 {[%emt 0:00:27]} Ra2+ {[%emt 0:00:09]} 57. Kd1 {[%emt 0:00:07]} Rh2 {[%emt 0:00:44]} 58. Bf7 {[%emt 0:00:24]} Kf5 {[%emt 0:00:01]} 59. Nf3 {[%emt 0:00:03]} Rh1+ {[%emt 0:00:01]} 60. Ke2 {[%emt 0:00:07]} Kf6 {[%emt 0:00:01]} 61. Bg8 {[%emt 0:00:10]} Rxh3 {[%emt 0:00:04]} 62. Bxe6 {[%emt 0:00:12]} Rxf3 {[%emt 0:00:18]} 63. Bxd5 {[%emt 0:00:01]} Rf4 {[%emt 0:00:14]} 64. Bc6 {[%emt 0:00:08]} h3 {[%emt 0:00:02]} 0-1